bitfinex/quotes_ETHUSD_20251120
["timestamp","ask_amount","ask_price","bid_price","bid_amount"]
[1763660288928,0.1876,2841.8,2838.8,0.0445]
[1763660288929,0.55255216,2840.7,2840.3,7.48513691]
[1763660289131,0.55255216,2840.7,2840.4,1.31249664]
[1763660289341,0.6764,2841.8,2840.4,1.31249664]
[1763660289544,0.55241732,2840.9,2840.3,0.405504]
[1763660289731,0.1,2841.3,2840.5,1.31249664]
[1763660289934,0.55239267,2841.2,2840.5,1.31249664]
[1763660290137,0.55239267,2841.2,2840.4,7.48513691]
[1763660290447,0.1,2840.7,2839.6,7.48513691]
[1763660290740,0.1,2840.8,2839.7,1.31249664]
[1763660290942,0.4888,2841.1,2839.7,1.31249664]
[1763660291142,0.4888,2841.1,2839.3,0.128]
[1763660291143,0.1,2841.1,2840.2,1.31249664]
[1763660291342,0.4888,2841.4,2840.7,0.90699264]
[1763660291542,0.1,2841.2,2840.7,0.90699264]
[1763660291750,0.1876,2841.8,2840.6,0.128]
[1763660291906,0.1,2841.3,2840.9,0.405504]
[1763660292432,0.4888,2842.4,2841.2,7.48513691]
[1763660292634,0.1941,2842.8,2841.8,1.31249664]
[1763660292853,0.1,2842.6,2842.3,0.405504]
[1763660293007,0.1876,2843.4,2842.3,0.405504]
[1763660293208,0.05,2845.7,2842.7,7.48513691]
[1763660293449,0.1,2843.6,2842.8,0.405504]
[1763660293655,0.4888,2844.1,2843.2,7.48513691]
[1763660293656,0.1,2843.9,2843.2,7.48513691]
[1763660293822,0.1,2843.7,2843.3,0.405504]
[1763660294149,0.55177846,2844.4,2843.3,1.31249664]
[1763660294320,0.55177846,2844.4,2843.0,0.128]
[1763660294321,0.4888,2844.9,2844.3,0.405504]
[1763660294509,0.1941,2846.2,2844.8,0.405504]
[1763660294715,0.1941,2847.6,2845.9,10.54865]
[1763660294716,0.55153726,2847.1,2845.9,10.54865]
[1763660295018,0.1941,2848.7,2845.4,1.31249664]
[1763660295019,0.4888,2847.5,2846.7,0.405504]
[1763660295208,0.1941,2846.8,2846.7,0.405504]
[1763660295409,0.1,2846.6,2845.6,7.48513691]
[1763660295634,0.1,2846.6,2845.4,1.03599264]
[1763660295635,0.1,2846.6,2845.4,7.61413691]
[1763660295843,0.05,2846.6,2845.0,0.1352]
[1763660296050,0.4888,2846.5,2845.2,0.90699264]
[1763660296408,0.4888,2846.5,2845.6,7.48513691]
[1763660296409,0.1,2846.2,2845.6,7.48513691]
[1763660296609,0.1,2846.2,2845.7,7.48513691]
[1763660296911,0.4888,2846.1,2845.2,7.48513691]
[1763660297109,0.1,2845.8,2844.9,7.48513691]
[1763660297458,0.1,2845.7,2845.1,7.48513691]
[1763660297746,0.1941,2846.8,2845.2,0.405504]
[1763660297747,0.55139751,2846.2,2845.2,0.405504]
[1763660297953,0.55139751,2846.2,2845.5,7.48513691]
[1763660298159,0.1941,2848.2,2846.1,1.31249664]
[1763660298160,0.1,2847.4,2846.1,1.31249664]
[1763660298321,0.55117305,2847.2,2846.9,7.48513691]
[1763660298721,1.03997305,2847.2,2846.5,1.31249664]
[1763660299127,0.55117305,2847.2,2846.5,0.90699264]
[1763660299622,0.1,2847.6,2846.9,7.48513691]
[1763660299947,0.1,2846.9,2846.4,0.405504]
[1763660300162,0.1,2847.2,2846.4,0.405504]
[1763660300339,0.55123023,2846.8,2845.9,7.48513691]
[1763660300578,0.1,2846.6,2845.9,7.48513691]
[1763660300714,0.4888,2847.6,2846.5,0.405504]
[1763660301033,0.1,2847.4,2846.8,7.48513691]
[1763660301237,0.1,2847.7,2846.8,7.48513691]
[1763660301436,0.1,2847.7,2846.4,0.90699264]
[1763660301437,0.6829,2848.2,2846.4,7.48513691]
[1763660301639,0.1,2847.2,2846.4,7.48513691]
[1763660301837,0.90699264,2848.0,2845.9,7.48513691]
[1763660302010,0.1941,2848.2,2846.4,7.48513691]
[1763660302011,0.1,2847.2,2846.4,7.48513691]
[1763660302213,0.4888,2847.9,2846.4,7.48513691]
[1763660302439,0.1941,2848.2,2846.4,7.48513691]
[1763660302440,0.1,2846.6,2846.4,7.48513691]
[1763660302641,0.4888,2847.8,2846.4,7.48513691]
[1763660302824,0.1,2847.0,2846.4,7.48513691]
[1763660303349,0.1,2847.0,2845.6,0.540704]
[1763660303350,0.4888,2847.4,2845.9,7.48513691]
[1763660303509,0.1,2847.0,2846.4,7.48513691]
[1763660303715,0.4888,2847.4,2844.7,0.45]
[1763660303918,0.1,2846.2,2845.5,7.48513691]
[1763660304153,0.4888,2847.3,2845.5,7.48513691]
[1763660304672,0.1,2846.3,2845.5,7.48513691]
[1763660305172,0.1,2847.2,2846.0,7.48513691]
[1763660305370,0.1,2847.2,2845.6,0.1352]
[1763660305371,0.1,2847.0,2846.5,7.48513691]
[1763660305683,0.1,2847.0,2845.6,0.5852]
[1763660305684,0.1,2847.0,2846.1,7.48513691]
[1763660305979,0.1,2846.4,2846.1,7.48513691]
[1763660306486,0.1,2846.8,2846.1,7.48513691]
[1763660306680,0.4888,2847.3,2846.6,7.48513691]
[1763660306850,0.1,2847.0,2846.6,7.48513691]
[1763660307174,0.1,2847.3,2846.6,7.48513691]
[1763660307379,0.1,2847.8,2847.1,7.48513691]
[1763660307672,0.1941,2848.2,2847.6,7.48513691]
[1763660307874,0.2941,2848.2,2847.6,7.48513691]
[1763660308112,0.4888,2848.1,2846.9,7.48513691]
[1763660308390,0.4888,2848.1,2845.8,0.1751709]
[1763660308391,0.4888,2848.1,2846.4,7.48513691]
[1763660308674,0.1,2847.0,2846.4,7.48513691]
[1763660309091,0.4888,2847.7,2846.5,0.03513086]
[1763660309237,0.1,2847.0,2846.2,0.129]
[1763660309757,0.1,2847.0,2846.1,7.48513691]
[1763660310068,0.1,2847.0,2845.7,0.669704]
[1763660310069,0.1,2847.0,2846.6,7.48513691]
[1763660310459,0.1941,2848.2,2846.1,1.31249664]
[1763660310460,0.1941,2848.2,2846.7,0.45]
[1763660310662,0.1941,2848.2,2846.5,0.129]
[1763660310663,0.04,2847.2,2847.1,7.89064091]
[1763660310864,0.04,2847.2,2847.1,7.48513691]
[1763660311084,0.04,2847.0,2846.5,0.129]
[1763660311384,0.04,2847.0,2846.9,7.48513691]
[1763660311548,0.04,2847.0,2846.6,7.48513691]
[1763660311959,0.55103744,2847.8,2846.1,0.129]
[1763660311960,0.4625,2846.9,2846.1,7.48513691]
[1763660312292,0.02,2846.5,2846.1,7.48513691]
[1763660313004,0.02,2846.5,2845.1,0.129]
[1763660313005,0.4825,2846.5,2845.6,7.48513691]
[1763660313305,0.1,2846.2,2845.6,7.48513691]
[1763660313458,0.4625,2846.5,2845.6,7.48513691]
[1763660313459,0.1,2845.8,2845.6,7.48513691]
[1763660313663,0.1,2845.8,2845.1,7.61413691]
[1763660313967,0.1,2845.8,2845.1,7.48513691]
[1763660314168,0.1993,2846.4,2845.2,0.03514691]
[1763660314479,0.1,2846.0,2845.6,7.48513691]
[1763660314656,0.1,2846.3,2845.6,7.48513691]
[1763660314862,0.1,2845.9,2845.6,7.48513691]
[1763660315070,0.02,2845.7,2845.6,7.48513691]
[1763660315271,0.02,2845.7,2844.0,3.6898616]
[1763660315272,0.405504,2846.2,2844.1,7.52963691]
[1763660315458,0.4625,2846.3,2844.6,7.48513691]
[1763660315459,0.02,2845.3,2844.6,7.48513691]
[1763660315668,0.02,2845.3,2845.1,7.48513691]
[1763660315869,0.02,2845.3,2844.6,7.48513691]
[1763660316054,0.1,2845.2,2844.6,7.48513691]
[1763660316369,0.1,2844.9,2844.6,7.48513691]
[1763660316570,0.4625,2845.7,2844.6,7.48513691]
[1763660317085,0.02,2845.3,2845.1,7.48513691]
[1763660317966,0.6618,2846.4,2845.2,1.76249664]
[1763660318268,0.1993,2846.7,2845.8,7.48513691]
[1763660318474,0.1,2846.5,2845.8,7.48513691]
[1763660319000,0.1993,2846.7,2845.8,7.48513691]
[1763660319158,0.1,2846.4,2845.8,7.48513691]
[1763660319358,0.6826,2846.7,2845.8,7.48513691]
[1763660319561,0.1,2846.4,2845.8,7.48513691]
[1763660320205,0.1,2846.1,2845.2,2.1777823]
[1763660320402,0.1,2845.9,2845.4,7.48513691]
[1763660320698,0.1,2846.0,2845.5,0.90699264]
[1763660320864,0.1,2846.5,2845.6,0.74793389]
[1763660321065,0.1,2846.5,2845.9,7.48513691]
[1763660321260,0.4833,2846.6,2846.0,0.75034179]
[1763660321261,0.1,2846.2,2846.0,0.75034179]
[1763660321500,0.65130117,2846.4,2845.9,7.48513691]
[1763660321703,0.55130117,2846.4,2846.0,0.75035471]
[1763660321862,0.1,2846.2,2845.6,0.93068804]
[1763660322064,0.1,2845.9,2845.7,0.75040498]
[1763660322287,0.1,2845.9,2845.4,8.41582495]
[1763660322288,0.1,2845.9,2845.8,0.75040498]
[1763660322497,0.1993,2846.7,2845.8,0.75040498]
[1763660322806,0.4833,2846.6,2845.6,0.03514197]
[1763660322962,0.4833,2846.6,2845.4,8.41582495]
[1763660322963,0.4833,2846.6,2845.7,0.75321568]
[1763660323165,0.1,2846.1,2845.8,0.96582754]
[1763660323364,0.1,2846.1,2845.9,0.03513826]
[1763660323661,0.1,2846.1,2845.9,0.93068804]
[1763660324097,0.1,2846.7,2845.9,9.36795815]
[1763660324372,0.1,2847.1,2846.5,1.26061668]
[1763660324572,0.1,2847.1,2847.0,0.94528166]
[1763660325608,0.1,2847.0,2846.8,0.94528166]
[1763660325813,0.2922,2846.9,2846.7,0.94528166]
[1763660326015,0.1922,2846.9,2846.6,0.94528166]
[1763660326166,0.1,2846.7,2846.6,0.94528166]
[1763660326373,0.5511769,2847.2,2846.6,0.94528166]
[1763660326374,0.1,2847.1,2846.6,1.26037555]
[1763660326603,0.5511769,2847.2,2846.9,0.94536729]
[1763660327021,0.1,2846.9,2846.8,0.94536729]
[1763660327536,0.1,2846.8,2846.5,0.94536729]
[1763660327685,0.4833,2846.7,2846.2,0.94536729]
[1763660328082,0.1,2846.0,2845.8,0.94536729]
[1763660328288,0.1,2846.0,2845.4,0.94536729]
[1763660328289,0.4833,2846.0,2845.4,0.94536729]
[1763660328508,0.1,2845.8,2845.6,0.94536729]
[1763660328896,0.1,2845.8,2845.7,0.94536729]
[1763660329107,0.1,2845.8,2845.6,1.26037555]
[1763660329284,0.1,2845.8,2845.1,9.99556524]
[1763660329285,0.1,2845.8,2845.7,0.94575982]
[1763660329833,0.1,2845.6,2845.5,0.94575982]
[1763660330015,0.1,2845.5,2845.4,0.94575982]
[1763660330216,0.4833,2845.5,2845.2,0.94575982]
[1763660330431,0.4833,2845.5,2845.1,0.03514814]
[1763660330661,0.4833,2845.5,2844.7,0.94575982]
[1763660330662,0.1,2845.2,2844.9,8.43089673]
[1763660330930,0.4833,2845.5,2844.9,8.43089673]
[1763660331129,1.09919264,2846.9,2845.0,0.94575982]
[1763660331130,0.1,2845.2,2845.0,0.94575982]
[1763660331293,0.1922,2845.9,2845.0,0.94575982]
[1763660331494,0.1,2845.5,2845.0,0.94575982]
[1763660331820,0.405504,2846.7,2845.0,0.94575982]
[1763660331993,0.1,2845.4,2845.0,0.94575982]
[1763660332192,0.1,2845.4,2845.1,0.94575982]
[1763660333241,0.1,2845.4,2845.3,0.94575982]
[1763660333426,0.1,2845.7,2845.3,8.43089673]
[1763660333731,0.1,2845.4,2845.3,7.48513691]
[1763660334533,0.1,2845.4,2845.0,0.94575982]
[1763660334711,0.1,2845.2,2845.0,0.94575982]
[1763660334916,0.002,2845.6,2845.0,0.94575982]
[1763660335145,0.1,2845.1,2845.0,0.94520952]
[1763660335345,0.002,2845.6,2845.0,0.94520952]
[1763660335532,0.002,2845.6,2845.3,7.48513691]
[1763660335734,0.102,2845.6,2845.3,7.48513691]
[1763660335959,0.1,2845.4,2845.3,7.48513691]
[1763660336251,0.102,2845.6,2845.3,7.48513691]
[1763660337511,0.1,2845.4,2845.3,7.48513691]
[1763660337834,0.002,2845.6,2845.3,7.48513691]
[1763660338176,0.1,2845.4,2845.3,7.48513691]
[1763660338817,0.002,2845.6,2845.1,0.94520952]
[1763660339018,0.1,2845.3,2845.1,0.94520952]
[1763660339213,0.1,2845.3,2845.0,0.94520952]
[1763660339417,0.002,2845.6,2845.0,0.94520952]
[1763660339637,0.022,2845.6,2845.1,0.94520952]
[1763660339825,0.1,2845.3,2845.1,0.94520952]
[1763660340031,0.1,2845.3,2845.0,0.94520952]
[1763660340228,0.4833,2845.2,2844.9,0.94620952]
[1763660340429,0.1,2845.0,2844.9,0.001]
[1763660340630,0.1,2845.1,2844.9,7.48613691]
[1763660340831,0.1,2845.4,2844.9,7.48613691]
[1763660341050,0.002,2845.6,2844.9,8.43134643]
[1763660341256,0.002,2845.6,2845.0,0.94520952]
[1763660341459,0.4853,2845.6,2844.9,8.43134643]
[1763660341616,0.1,2845.0,2844.9,0.001]
[1763660341817,0.4853,2845.6,2844.9,7.48613691]
[1763660342037,0.1,2845.0,2844.9,7.48613691]
[1763660342439,0.5833,2845.0,2844.6,0.001]
[1763660342661,0.1,2844.7,2844.6,0.001]
[1763660342872,0.1,2844.7,2843.5,1.88282124]
[1763660342873,0.1,2843.4,2843.2,0.94520952]
[1763660343073,0.1,2843.2,2843.1,7.48513691]
[1763660343274,0.4833,2844.2,2843.1,8.43066863]
[1763660343459,0.1,2843.5,2843.2,0.94553172]
[1763660343842,0.1,2843.6,2843.2,1.85252436]
[1763660344035,0.1,2843.9,2843.5,7.48513691]
[1763660344272,0.002,2845.6,2843.8,7.48513691]
[1763660344273,0.1,2844.2,2843.8,7.48513691]
[1763660344475,0.002,2845.6,2843.8,0.9453766]
[1763660344476,0.02,2845.3,2843.8,0.9453766]
[1763660344659,0.4833,2845.5,2843.1,8.43051351]
[1763660344660,0.1922,2843.9,2843.1,8.43051351]
[1763660344864,0.1,2843.3,2843.1,8.43051351]
[1763660345059,0.1,2843.3,2843.2,7.48513691]
[1763660345562,0.1922,2843.9,2842.7,7.48513691]
[1763660345563,0.4833,2843.6,2842.7,7.48513691]
[1763660345874,0.1,2842.9,2842.7,7.48513691]
[1763660346239,0.4833,2843.4,2842.5,7.48513691]
[1763660346443,0.65185784,2842.9,2842.5,7.48513691]
[1763660346639,0.55185784,2842.9,2842.2,0.9453766]
[1763660346841,0.1922,2843.9,2841.8,2.01802124]
[1763660346842,0.4833,2842.8,2841.8,6.15336185]
[1763660347051,0.4833,2842.8,2841.3,1.26037555]
[1763660347052,0.1,2842.3,2841.3,0.9453766]
[1763660347254,0.02,2842.1,2841.5,6.15336185]
[1763660347464,0.02,2842.1,2841.6,0.03519144]
[1763660347683,1.03527499,2842.8,2842.0,6.28856185]
[1763660347684,0.02,2842.6,2842.0,6.28856185]
[1763660347881,0.93081645,2844.5,2842.0,6.28856185]
[1763660347882,0.1922,2843.5,2842.5,6.15336185]
[1763660348042,0.1,2843.3,2843.0,6.15336185]
[1763660348243,0.55194879,2843.2,2843.1,0.90699264]
[1763660348564,0.4942,2844.2,2843.1,0.90699264]
[1763660348882,0.1,2843.3,2843.1,0.90699264]
[1763660349242,0.4942,2843.3,2842.7,6.15336185]
[1763660349466,0.1,2843.0,2842.7,6.15336185]
[1763660349873,0.1,2843.4,2842.7,6.15336185]
[1763660350174,1.04599474,2843.6,2842.8,6.15336185]
[1763660350490,0.1,2842.9,2842.8,6.15336185]
[1763660350909,0.1,2842.7,2841.7,0.1352]
[1763660351212,0.1,2842.7,2842.1,6.15336185]
[1763660351364,0.4942,2843.0,2842.1,6.15336185]
[1763660351713,0.4942,2843.8,2842.1,6.15336185]
[1763660351863,0.4942,2843.7,2842.8,6.15336185]
[1763660352397,0.4942,2843.7,2842.6,0.001]
[1763660352707,0.1,2842.7,2842.6,0.001]
[1763660353070,0.5942,2842.7,2842.4,0.001]
[1763660353308,0.4942,2843.1,2842.4,0.001]
[1763660353480,0.1,2842.6,2842.4,0.001]
[1763660353685,0.002,2844.3,2842.4,0.001]
[1763660353882,0.1,2842.9,2842.7,6.15336185]
[1763660354811,0.1,2842.8,2842.7,6.15336185]
[1763660355305,0.4942,2843.4,2842.4,0.001]
[1763660355607,0.02,2843.0,2842.7,6.15336185]
[1763660356071,0.1,2842.5,2842.4,6.15436185]
[1763660356270,0.1,2842.5,2842.4,0.001]
[1763660356473,0.4942,2842.5,2842.4,0.001]
[1763660356673,0.1,2841.4,2840.4,0.0465]
[1763660356978,0.1,2841.5,2841.3,6.15336185]
[1763660357196,0.1,2841.7,2841.3,6.15336185]
[1763660357399,0.1,2842.4,2841.4,1.04319264]
[1763660357612,0.1,2842.1,2841.9,6.15336185]
[1763660358486,0.1852,2842.8,2841.9,6.15336185]
[1763660358670,0.1852,2842.8,2841.4,6.15336185]
[1763660358671,0.4942,2842.7,2841.4,6.15336185]
[1763660358874,0.1,2841.4,2840.9,6.15336185]
[1763660359073,0.1,2842.1,2841.3,6.15336185]
[1763660359300,0.1,2841.7,2841.3,6.15336185]
[1763660359504,0.4942,2842.6,2841.1,6.15336185]
[1763660359708,0.1,2841.7,2841.2,0.03519639]
[1763660359872,0.4942,2842.7,2841.1,6.15336185]
[1763660360072,0.4942,2842.7,2840.2,0.5932]
[1763660360073,0.02,2841.7,2840.2,0.5932]
[1763660360273,0.4942,2842.7,2840.5,6.15336185]
[1763660360274,0.1,2840.9,2840.5,6.15336185]
[1763660360515,0.1,2840.9,2840.6,0.90699264]
[1763660360771,0.1852,2841.2,2840.5,6.15336185]
[1763660361121,0.1,2841.0,2840.5,6.15336185]
[1763660361412,0.1,2840.6,2840.5,6.15336185]
[1763660362014,0.1852,2841.5,2840.5,6.15336185]
[1763660362015,0.1,2840.9,2840.5,7.06035449]
[1763660362389,0.1,2840.9,2840.5,7.51635449]
[1763660362594,0.1,2840.9,2840.5,7.06035449]
[1763660363082,0.1,2840.6,2839.8,0.5025]
[1763660363424,0.4942,2840.7,2839.6,6.15336185]
[1763660363621,0.1,2840.2,2839.6,6.15336185]
[1763660363926,0.4942,2840.7,2840.1,6.15336185]
[1763660364219,0.1,2840.5,2840.1,6.15336185]
[1763660364544,0.1,2840.2,2840.1,6.15336185]
[1763660365457,0.4942,2840.2,2839.1,6.28956185]
[1763660365662,0.1852,2840.5,2839.6,6.15336185]
[1763660366146,0.1,2839.9,2839.6,6.15336185]
[1763660366307,0.02,2840.6,2839.7,0.861504]
[1763660366508,0.1,2840.5,2840.4,6.15336185]
[1763660367050,0.1,2840.0,2839.9,6.15336185]
[1763660367254,0.4942,2840.6,2839.4,6.15336185]
[1763660367414,0.1,2839.9,2839.4,6.15336185]
[1763660367837,0.1,2840.2,2839.5,0.90699264]
[1763660368024,0.1,2840.5,2839.5,0.90699264]
[1763660368219,0.1,2840.7,2839.5,0.90699264]
[1763660368423,0.1,2839.4,2838.5,0.4975]
[1763660368635,0.1,2839.4,2838.9,6.15336185]
[1763660369256,0.1,2839.4,2839.0,0.03522367]
[1763660369448,0.1,2839.4,2838.9,6.65086185]
[1763660369954,0.1852,2841.5,2839.0,0.872204]
[1763660369955,0.02,2839.6,2839.0,0.872204]
[1763660370153,0.1,2839.5,2839.4,6.15336185]
[1763660370323,0.452,2840.3,2839.4,6.15336185]
[1763660370324,0.1,2839.9,2839.5,0.1919]
[1763660370526,0.02,2840.1,2839.8,6.15336185]
[1763660371444,0.5447,2840.1,2839.5,0.90799264]
[1763660371611,0.1,2839.8,2839.5,0.90799264]
[1763660372042,0.1,2840.1,2839.5,1.37469264]
[1763660372242,0.1,2840.1,2839.9,6.15336185]
[1763660372418,0.1852,2841.5,2840.0,1.77919664]
[1763660372619,0.1852,2841.5,2840.6,6.15336185]
[1763660372844,0.02,2841.3,2841.1,6.15336185]
[1763660373040,0.1,2841.2,2841.1,6.15336185]
[1763660373630,0.1,2841.6,2841.1,6.15336185]
[1763660374444,0.452,2842.2,2841.1,6.15336185]
[1763660374650,0.1872,2842.4,2841.1,6.15336185]
[1763660374651,0.1,2841.4,2841.1,6.15336185]
[1763660375345,0.02,2841.8,2841.2,1.77919664]
[1763660375551,0.02,2841.8,2841.7,7.06035449]
[1763660376643,0.1,2841.9,2841.7,7.06035449]
[1763660377145,0.55404621,2842.1,2841.7,7.52705449]
[1763660377314,0.65404621,2842.1,2841.7,7.52705449]
[1763660377512,0.102,2842.1,2841.7,7.52705449]
[1763660377737,0.5540438,2842.4,2841.8,0.4667]
[1763660377921,0.5740438,2842.4,2842.3,6.15336185]
[1763660378757,0.1,2842.1,2842.0,6.15336185]
[1763660379244,0.1,2842.2,2842.0,6.15336185]
[1763660379666,0.5540438,2842.4,2842.0,6.15336185]
[1763660379865,0.1,2842.1,2842.0,6.15336185]
[1763660380943,0.1,2842.3,2842.0,6.15336185]
[1763660381335,0.002,2842.4,2842.1,0.90699264]
[1763660381640,0.1928,2843.5,2842.2,0.405504]
[1763660381845,0.4682,2843.9,2843.3,6.15336185]
[1763660384472,0.4682,2843.9,2842.0,6.28136185]
[1763660384473,0.4682,2843.9,2842.8,6.15336185]
[1763660384648,0.55192526,2843.8,2842.8,6.15336185]
[1763660385043,0.1772,2842.9,2842.8,6.15336185]
[1763660385248,0.1772,2842.9,2842.3,6.15336185]
[1763660385558,0.1772,2842.9,2841.0,1.26037555]
[1763660385559,0.4682,2842.8,2841.8,6.15336185]
[1763660385787,0.3792865,2842.8,2841.8,6.15336185]
[1763660386073,0.1994,2841.9,2841.3,6.15336185]
[1763660387686,0.1994,2841.9,2840.9,6.15336185]
[1763660387687,0.4682,2841.8,2840.9,6.15336185]
[1763660387988,0.1996,2841.0,2840.0,6.15336185]
[1763660388153,0.4682,2840.9,2840.0,6.15336185]
[1763660389548,0.4682,2841.6,2840.6,6.15336185]
[1763660389749,0.1994,2841.9,2841.1,6.15336185]
[1763660389953,0.4682,2841.8,2841.1,6.15336185]
[1763660390700,0.4682,2841.8,2841.3,0.001]
[1763660393895,0.405504,2841.7,2841.0,0.001]
[1763660394082,0.1996,2841.1,2841.0,0.001]
[1763660394455,0.6678,2841.1,2841.0,0.001]
[1763660396211,0.6678,2841.1,2840.2,7.05226492]
[1763660396369,0.4682,2841.0,2840.2,7.05226492]
[1763660396775,0.0712,2840.9,2840.2,7.05226492]
[1763660396972,0.0712,2840.9,2839.8,7.05226492]
[1763660397306,0.0712,2840.9,2839.5,0.001]
[1763660397307,0.4642,2840.8,2839.6,7.05226492]
[1763660397868,0.0712,2840.9,2839.6,7.05226492]
[1763660398070,0.0712,2840.9,2840.0,7.05226492]
[1763660398071,0.55259207,2840.6,2840.0,7.05226492]
[1763660399511,0.55259207,2840.6,2839.5,0.493]
[1763660399512,0.55259207,2840.6,2839.9,7.05226492]
[1763660400407,0.55259207,2840.6,2839.5,0.493]
[1763660400408,1.02079207,2840.6,2839.5,7.05326492]
[1763660400918,0.4682,2840.5,2839.5,7.05326492]
[1763660401214,0.55259207,2840.6,2840.3,7.05226492]
[1763660401426,0.1996,2841.1,2840.4,0.0352063]
[1763660401720,0.4682,2841.0,2839.5,0.001]
[1763660402013,0.4682,2841.0,2839.5,7.05326492]
[1763660402222,0.1861,2840.9,2839.9,7.05226492]
[1763660402708,0.1861,2840.9,2840.1,7.05226492]
[1763660402709,0.4682,2840.8,2840.1,7.05226492]
[1763660403479,0.1994,2841.9,2840.5,7.05226492]
[1763660403676,0.002,2842.1,2841.6,7.05226492]
[1763660403879,0.002,2842.1,2840.6,1.93249664]
[1763660403880,0.4682,2843.4,2841.7,0.6335]
[1763660404101,0.6317,2842.9,2842.0,7.05226492]
[1763660404315,0.6317,2842.9,2841.4,0.405504]
[1763660404316,0.4702,2842.4,2841.6,7.05226492]
[1763660404690,0.002,2842.4,2842.0,7.05226492]
[1763660404890,0.002,2842.4,2841.9,6.1528783]
[1763660405106,0.4682,2842.3,2840.7,6.3416783]
[1763660405305,0.4682,2842.3,2840.9,6.1528783]
[1763660405504,0.4682,2842.3,2841.0,0.492]
[1763660406133,0.4682,2842.3,2840.5,0.128]
[1763660406428,0.4682,2842.3,2840.4,6.1528783]
[1763660406584,0.4682,2842.3,2840.3,0.1888]
[1763660406894,0.4682,2842.3,2840.3,7.65337706]
[1763660407095,0.405504,2842.2,2840.3,7.65337706]
[1763660407295,0.405504,2842.0,2839.4,0.492]
[1763660407519,0.405504,2842.0,2839.7,7.46457706]
[1763660407732,0.405504,2841.8,2839.7,7.59257706]
[1763660407902,0.405504,2841.8,2839.8,0.492]
[1763660408222,0.405504,2841.6,2839.7,0.128]
[1763660408581,0.4784,2841.5,2839.7,0.128]
[1763660409226,0.405504,2841.4,2839.7,0.128]
[1763660409387,0.405504,2841.4,2841.0,0.001]
[1763660409602,0.405504,2841.2,2841.0,0.001]
[1763660409801,0.405504,2841.2,2839.2,0.001]
[1763660410137,0.405504,2841.0,2839.2,0.001]
[1763660410309,0.405504,2840.8,2839.2,0.001]
[1763660410521,0.405504,2840.8,2840.4,0.001]
[1763660410715,31.31249664,2840.5,2840.4,0.001]
[1763660411047,31.31249664,2840.5,2839.2,0.001]
[1763660411048,0.1952,2839.3,2837.3,0.4627]
[1763660411253,0.405504,2839.2,2837.3,0.1815]
[1763660411464,0.1514,2837.4,2836.4,0.1815]
[1763660411738,0.1514,2837.4,2836.3,0.001]
[1763660411739,0.4784,2837.3,2836.3,0.001]
[1763660412109,0.1,2836.6,2836.3,0.001]
[1763660413813,0.5784,2836.6,2836.3,0.001]
[1763660414526,0.5784,2836.6,2835.0,0.001]
[1763660414527,1.31249664,2836.5,2835.0,0.001]
[1763660414740,0.1,2835.1,2835.0,0.001]
[1763660415127,1.13197311,2835.1,2835.0,0.001]
[1763660415710,0.65357311,2835.1,2835.0,0.001]
[1763660416325,1.13197311,2835.1,2835.0,0.001]
[1763660416565,0.65357311,2835.1,2835.0,0.001]
[1763660417633,0.55357311,2835.1,2835.0,0.4637]
[1763660417833,0.55357311,2835.1,2835.0,0.001]
[1763660417834,0.65357311,2835.1,2835.0,0.001]
[1763660418035,0.4784,2836.2,2835.0,0.4637]
[1763660418378,0.1,2835.1,2835.0,0.001]
[1763660419038,0.4784,2836.3,2835.0,0.4637]
[1763660419231,0.1,2835.1,2835.0,0.4637]
[1763660419850,0.1,2835.5,2835.0,1.37069264]
[1763660420035,0.1,2835.5,2835.1,0.405504]
[1763660420232,0.4784,2836.4,2835.1,0.4627]
[1763660420739,0.1,2835.6,2835.1,0.4627]
[1763660421081,0.4784,2836.8,2835.0,0.001]
[1763660421237,0.1,2835.4,2835.0,0.001]
[1763660421436,0.1,2835.1,2835.0,0.001]
[1763660421639,0.1,2835.3,2835.0,0.001]
[1763660421957,0.4784,2836.6,2835.0,0.4637]
[1763660422165,0.1,2835.6,2835.2,0.90699264]
[1763660422474,0.4784,2836.6,2835.0,0.001]
[1763660422791,0.1,2835.1,2835.0,0.001]
[1763660423135,0.02,2835.1,2835.0,0.001]
[1763660423873,0.1,2835.4,2835.0,0.4637]
[1763660424080,0.4784,2836.6,2835.0,0.4637]
[1763660424252,0.02,2836.3,2835.3,0.405504]
[1763660424577,0.1,2835.9,2835.4,0.4627]
[1763660424791,1.3,2835.8,2835.0,0.001]
[1763660425081,1.3,2835.8,2834.4,0.001]
[1763660425082,0.405504,2835.0,2834.4,0.001]
[1763660425243,0.1,2834.8,2834.4,0.001]
[1763660426584,0.5784,2834.8,2834.4,0.001]
[1763660426788,0.983904,2834.8,2834.4,0.001]
[1763660427077,0.405504,2834.7,2834.4,0.001]
[1763660427282,0.505504,2834.5,2834.4,0.001]
[1763660427482,0.1,2832.9,2832.6,0.4627]
[1763660427686,0.1,2833.2,2832.7,0.4627]
[1763660428040,0.1,2833.5,2832.9,7.46457706]
[1763660428287,0.02,2834.8,2834.7,0.001]
[1763660428789,1.45760865,2834.8,2834.7,0.001]
[1763660428941,0.405504,2834.7,2834.4,0.001]
[1763660429142,0.505504,2834.5,2834.4,0.001]
[1763660429576,0.875004,2834.5,2831.4,3.713]
[1763660429889,0.875004,2834.5,2830.9,0.1997]
[1763660429890,0.5538324,2832.3,2831.5,0.4505]
[1763660430101,0.5538324,2832.3,2831.7,7.46457706]